bitfinex-derivatives/quotes_BTCF0:USTF0_20240824
["timestamp","ask_amount","ask_price","bid_price","bid_amount"]
[1724458976392,0.04861593,63941.0,63940.0,0.091129]
[1724458976690,0.00204,63941.0,63940.0,0.091129]
[1724458977785,0.04861578,63941.0,63940.0,0.091129]
[1724458978085,0.04861578,63941.0,63940.0,0.013]
[1724458978294,0.440968,63941.0,63940.0,0.013]
[1724458978678,0.36284,63941.0,63940.0,0.09113]
[1724458978879,0.42494258,63941.0,63940.0,0.09113]
[1724458979079,0.36284,63941.0,63940.0,0.09113]
[1724458979279,0.40942255,63941.0,63940.0,0.09113]
[1724458979591,0.40941938,63941.0,63940.0,0.15355329]
[1724458979782,0.36284,63941.0,63940.0,0.15355329]
[1724458979983,0.00010445,63947.0,63946.0,0.078122]
[1724458980189,0.00010445,63947.0,63946.0,1.108922]
[1724458980491,0.00010445,63947.0,63946.0,1.578082]
[1724458980681,0.04657938,63953.0,63952.0,0.078115]
[1724458980877,0.06210258,63957.0,63952.0,0.348115]
[1724458981090,0.04658656,63953.0,63952.0,0.748115]
[1724458981587,0.04658656,63955.0,63952.0,1.217195]
[1724458981788,0.04658656,63955.0,63953.0,0.46908]
[1724458982195,0.04658656,63956.0,63953.0,0.86908]
[1724458982491,0.04658656,63958.0,63953.0,0.86908]
[1724458982693,0.04658656,63958.0,63953.0,0.46908]
[1724458982898,0.3618,63954.0,63953.0,0.46908]
[1724458983086,0.001,63954.0,63953.0,0.82988]
[1724458983401,0.002,63954.0,63953.0,0.82988]
[1724458983700,0.001,63954.0,63953.0,0.82988]
[1724458983991,0.003,63954.0,63953.0,0.82988]
[1724458984389,0.003,63954.0,63953.0,0.907994]
[1724458984688,0.003,63954.0,63953.0,0.547194]
[1724458985085,0.004,63954.0,63953.0,0.547194]
[1724458989488,0.004,63954.0,63953.0,0.078114]
[1724458989887,0.004,63954.0,63949.0,0.21888]
[1724458990094,0.438922,63950.0,63949.0,0.21888]
[1724458990292,0.078125,63948.0,63947.0,0.00023459]
[1724458990495,0.14022758,63948.0,63947.0,0.00023459]
[1724458990795,0.078125,63948.0,63947.0,0.00023459]
[1724458991296,0.078165,63948.0,63947.0,0.00023459]
[1724458991495,0.078165,63948.0,63947.0,0.00523459]
[1724458992498,0.079165,63948.0,63947.0,0.00723459]
[1724458993596,1.02600456,63948.0,63947.0,0.00496]
[1724458993792,0.62600456,63948.0,63947.0,0.00496]
[1724458994797,0.548285,63948.0,63947.0,0.00496]
[1724458994998,0.948285,63948.0,63947.0,0.00496]
[1724458995205,0.548285,63948.0,63947.0,0.00496]
[1724458995498,0.079165,63948.0,63947.0,0.00496]
[1724458999205,0.548285,63948.0,63947.0,0.00496]
[1724458999499,0.079165,63948.0,63947.0,0.00496]
[1724459002202,0.00104,63948.0,63947.0,0.083087]
[1724459002599,0.06302084,63948.0,63947.0,0.083087]
[1724459004899,0.00104,63948.0,63947.0,0.083087]
[1724459005102,0.06302084,63948.0,63947.0,0.083087]
[1724459005497,0.00104,63948.0,63947.0,0.083087]
[1724459009209,0.078133,63942.0,63941.0,0.00023459]
[1724459009514,0.438933,63942.0,63941.0,0.00023459]
[1724459009701,0.46426425,63942.0,63941.0,0.00023459]
[1724459009906,0.46430425,63942.0,63941.0,0.00023459]
[1724459011209,0.46630482,63942.0,63941.0,0.01023459]
[1724459011417,0.440973,63942.0,63941.0,0.01023459]
[1724459011711,0.51739266,63942.0,63941.0,0.00023459]
[1724459011902,0.439973,63942.0,63941.0,0.00023459]
[1724459012413,0.51738475,63942.0,63941.0,0.00023459]
[1724459012613,0.51638445,63942.0,63941.0,0.00023459]
[1724459013214,0.517106,63942.0,63941.0,0.00023459]
[1724459013406,0.90583801,63942.0,63941.0,0.00023459]
[1724459013600,0.91102541,63942.0,63941.0,0.00023459]
[1724459015909,0.55022541,63942.0,63941.0,0.00023459]
[1724459016108,1.27182541,63942.0,63941.0,0.00023459]
[1724459017106,0.703605,63941.0,63940.0,5.9e-07]
[1724459017307,0.82184654,63941.0,63940.0,5.9e-07]
[1724459017512,1.12893701,63941.0,63940.0,5.9e-07]
[1724459017706,0.078152,63927.0,63922.0,0.0938]
[1724459017903,0.86169186,63927.0,63922.0,0.0938]
[1724459018107,0.799752,63927.0,63922.0,0.0938]
[1724459018712,0.799752,63927.0,63923.0,0.0497]
[1724459019218,0.800752,63927.0,63923.0,0.0497]
[1724459019406,0.86269186,63927.0,63923.0,0.0497]
[1724459019606,0.800752,63927.0,63923.0,0.0497]
[1724459020010,0.801752,63927.0,63926.0,0.00719563]
[1724459020918,0.800752,63927.0,63926.0,0.00019563]
[1724459021106,0.801752,63927.0,63926.0,0.00719563]
[1724459023115,0.84820904,63927.0,63926.0,0.00719563]
[1724459023314,0.801752,63927.0,63926.0,0.00719563]
[1724459023707,0.86367797,63927.0,63926.0,0.00719563]
[1724459024514,0.801752,63927.0,63926.0,0.00719563]
[1724459025323,0.86367797,63927.0,63926.0,0.00719563]
[1724459027224,0.801752,63927.0,63926.0,0.00719563]
[1724459030821,0.879904,63927.0,63926.0,0.00719563]
[1724459031128,0.879904,63927.0,63926.0,6.3e-07]
[1724459031129,1.427336,63927.0,63926.0,6.3e-07]
[1724459031319,0.156318,63921.0,63920.0,0.00023459]
[1724459031511,0.517118,63921.0,63920.0,0.00023459]
[1724459032226,0.51724522,63921.0,63920.0,0.00023459]
[1724459033022,0.51824522,63921.0,63920.0,0.00023459]
[1724459033617,0.51924522,63921.0,63920.0,0.00023459]
[1724459034422,0.51824522,63921.0,63920.0,0.00023459]
[1724459034622,0.58113855,63921.0,63920.0,0.00023459]
[1724459034822,0.51924522,63921.0,63920.0,0.00023459]
[1724459036529,0.59659283,63921.0,63920.0,0.00023459]
[1724459036721,0.59759283,63921.0,63920.0,0.00023459]
[1724459037525,0.54558501,63921.0,63920.0,0.00023459]
[1724459038326,0.52024522,63921.0,63920.0,0.00023459]
[1724459038522,0.54558501,63921.0,63920.0,0.00023459]
[1724459039134,0.90638501,63921.0,63920.0,0.00023459]
[1724459039432,0.91157897,63921.0,63920.0,0.00023459]
[1724459041223,0.91257897,63921.0,63920.0,0.00023459]
[1724459042218,0.91357897,63921.0,63920.0,0.00023459]
[1724459042927,0.91457897,63921.0,63920.0,0.00023459]
[1724459043427,0.91557908,63921.0,63920.0,0.00023459]
[1724459047331,1.00848887,63921.0,63920.0,0.00023459]
[1724459048133,1.0084891,63921.0,63920.0,0.00023459]
[1724459048727,0.91557931,63921.0,63920.0,0.00023459]
[1724459049330,1.00865016,63921.0,63920.0,0.00023459]
[1724459052332,0.91557931,63921.0,63920.0,0.00023459]
[1724459053239,0.83742031,63921.0,63920.0,0.00023459]
[1724459053430,0.91557931,63921.0,63920.0,0.00023459]
[1724459053736,0.83742031,63921.0,63920.0,0.00023459]
[1724459053936,0.91557931,63921.0,63920.0,0.00023459]
[1724459054138,0.83742031,63921.0,63920.0,0.00023459]
[1724459054336,0.93052032,63921.0,63920.0,0.00023459]
[1724459055234,0.83742031,63921.0,63920.0,0.00023459]
[1724459056830,0.80636791,63921.0,63920.0,0.46955459]
[1724459057035,0.72872722,63921.0,63920.0,0.94771459]
[1724459057539,0.80688622,63921.0,63920.0,0.46955459]
[1724459057735,0.80688622,63921.0,63920.0,0.00023459]
[1724459057943,0.88452691,63921.0,63920.0,0.00023459]
[1724459058235,0.80688622,63921.0,63920.0,0.00023459]
[1724459059542,0.80688622,63921.0,63920.0,0.46955459]
[1724459059930,0.78688622,63921.0,63920.0,0.46955459]
[1724459061030,0.78695463,63921.0,63920.0,0.46955459]
[1724459061633,0.78695463,63921.0,63920.0,0.00023459]
[1724459062938,0.78695463,63921.0,63920.0,0.46955459]
[1724459063531,0.78695463,63921.0,63920.0,0.00023459]
[1724459064034,0.43902741,63921.0,63920.0,0.00023459]
[1724459065934,0.43902741,63921.0,63920.0,0.07839459]
[1724459066934,0.36086841,63921.0,63920.0,0.07839459]
[1724459067543,0.04658048,63923.0,63920.0,0.86955459]
[1724459067742,0.04658048,63925.0,63924.0,0.078155]
[1724459067935,0.3608,63931.0,63925.0,0.078154]
[1724459067936,0.04658048,63926.0,63925.0,0.078154]
[1724459068141,0.04658048,63926.0,63925.0,0.12495038]
[1724459068441,0.3608,63931.0,63930.0,0.078148]
[1724459068840,0.3608,63931.0,63930.0,0.947388]
[1724459069238,0.4073431,63931.0,63930.0,0.947388]
[1724459069442,0.3608,63931.0,63930.0,0.947388]
[1724459069938,0.3608,63931.0,63930.0,0.950388]
[1724459070143,0.3608,63931.0,63930.0,0.952388]
[1724459070652,0.3608,63931.0,63930.0,1.001988]
[1724459070938,0.3608,63931.0,63930.0,1.000988]
[1724459071335,0.3608,63931.0,63930.0,0.998988]
[1724459071542,0.00023459,63933.0,63932.0,0.078145]
[1724459071942,0.00023459,63933.0,63930.0,0.0536]
[1724459072145,0.0465431,63932.0,63930.0,0.0536]
[1724459072345,0.04677769,63933.0,63930.0,0.52284]
[1724459072537,0.04677769,63933.0,63930.0,0.0516]
[1724459072744,0.04677769,63933.0,63930.0,0.0546]
[1724459072944,0.12492169,63933.0,63930.0,0.0526]
[1724459073139,0.07837859,63933.0,63930.0,0.0526]
[1724459073442,0.07837859,63933.0,63930.0,0.0556]
[1724459073443,0.078146,63932.0,63930.0,0.0556]
[1724459073641,0.078146,63932.0,63930.0,0.0526]
[1724459073837,0.078146,63932.0,63930.0,0.0556]
[1724459074643,0.078146,63932.0,63930.0,0.52484]
[1724459074837,0.078146,63932.0,63930.0,0.0556]
[1724459075751,0.078146,63932.0,63930.0,0.602988]
[1724459075937,0.078146,63932.0,63931.0,0.078147]
[1724459076447,0.078146,63932.0,63931.0,0.547387]
[1724459077344,0.078146,63932.0,63931.0,0.552387]
[1724459079542,0.078146,63932.0,63931.0,0.083147]
[1724459083546,0.1246891,63932.0,63931.0,0.083147]
[1724459083741,0.078146,63932.0,63931.0,0.083147]
[1724459085848,0.1246891,63932.0,63931.0,0.083147]
[1724459087443,0.00023459,63933.0,63932.0,0.078146]
[1724459088752,0.04677106,63933.0,63932.0,0.080146]
[1724459088951,0.04677106,63933.0,63932.0,0.081146]
[1724459089158,0.40757106,63933.0,63932.0,0.081146]
[1724459089654,0.36103459,63933.0,63932.0,0.003]
[1724459090859,0.43921859,63933.0,63932.0,0.003]
[1724459092253,0.43921859,63933.0,63925.0,0.04677505]
[1724459092455,0.43921859,63933.0,63909.0,0.48145216]
[1724459092456,0.07817,63912.0,63909.0,0.04678866]
[1724459092757,0.078177,63907.0,63905.0,0.04678866]
[1724459092954,0.078177,63907.0,63904.0,0.04678866]
[1724459093356,0.078177,63907.0,63903.0,0.04678866]
[1724459093555,0.40733044,63904.0,63903.0,0.04678866]
[1724459094057,0.40737044,63904.0,63903.0,0.04678866]
[1724459094257,0.40737044,63904.0,63902.0,0.0474]
[1724459094258,0.36084,63904.0,63902.0,0.09418866]
[1724459094459,0.35784,63904.0,63902.0,0.0474]
[1724459095055,4e-05,63903.0,63902.0,0.0474]
[1724459095653,0.35584,63904.0,63898.0,0.00023459]
[1724459095854,0.3608,63899.0,63898.0,0.00023459]
[1724459096051,0.36076,63899.0,63898.0,0.00023459]
[1724459096251,0.35976,63899.0,63898.0,0.00023459]
[1724459097357,0.35976,63899.0,63898.0,0.00123459]
[1724459097663,0.36076,63899.0,63898.0,0.00123459]
[1724459098863,0.3608,63899.0,63898.0,0.00123459]
[1724459099459,0.3618,63899.0,63898.0,0.00123459]
[1724459100758,0.3618,63899.0,63898.0,0.07942159]
[1724459101762,0.00204,63899.0,63898.0,0.07942159]
[1724459105465,0.00204,63899.0,63898.0,0.07842159]
[1724459106870,0.00104,63899.0,63898.0,0.07842159]
[1724459107168,0.00204,63899.0,63898.0,0.07842159]
[1724459113567,0.00104,63899.0,63898.0,0.07842159]
[1724459113763,0.00204,63899.0,63898.0,0.07842159]
[1724459121072,0.04857044,63899.0,63898.0,0.07842159]
[1724459121371,0.00204,63899.0,63898.0,0.07842159]
[1724459121577,0.00204,63899.0,63898.0,0.12523981]
[1724459122269,0.00204,63899.0,63898.0,0.07842159]
[1724459122469,0.00204,63899.0,63898.0,0.14080027]
[1724459122975,0.00204,63899.0,63898.0,0.07842159]
[1724459123361,0.00204,63899.0,63898.0,0.14080027]
[1724459124170,0.00204,63899.0,63898.0,0.07842159]
[1724459124477,0.00204,63899.0,63898.0,0.14080027]
[1724459125272,0.00204,63899.0,63898.0,0.07842159]
[1724459126071,0.00204,63899.0,63898.0,0.14096601]
[1724459127573,0.00204,63899.0,63898.0,0.07842159]
[1724459127775,0.00204,63899.0,63898.0,0.14096945]
[1724459128077,0.00204,63899.0,63898.0,0.07842159]
[1724459128272,0.00204,63899.0,63898.0,0.14096951]
[1724459128675,0.00204,63899.0,63898.0,0.07842159]
[1724459129777,0.00204,63899.0,63894.0,0.00111654]
[1724459129978,0.078193,63893.0,63892.0,0.00018288]
[1724459130284,0.10353889,63893.0,63892.0,0.00018288]
[1724459130777,0.10357889,63893.0,63892.0,0.00018288]
[1724459131382,0.15588469,63893.0,63892.0,0.00018288]
[1724459131570,0.15688469,63893.0,63892.0,0.00018288]
[1724459131771,0.87848469,63893.0,63892.0,0.00018288]
[1724459132283,0.87948469,63893.0,63892.0,0.00018288]
[1724459132585,0.87848469,63893.0,63892.0,0.00018288]
[1724459132879,0.799833,63893.0,63892.0,0.00018288]
[1724459138783,0.86190007,63893.0,63892.0,0.00018288]
[1724459139383,0.799833,63893.0,63892.0,0.00018288]
[1724459139684,1.94454879,63893.0,63892.0,8.8e-07]
[1724459139878,1.85127009,63893.0,63892.0,8.8e-07]
[1724459140276,1.46613251,63893.0,63892.0,8.8e-07]
[1724459140586,1.86613251,63893.0,63892.0,8.8e-07]
[1724459140982,1.46613251,63893.0,63892.0,8.8e-07]
[1724459141276,1.77307709,63893.0,63892.0,8.8e-07]
[1724459142085,1.92008707,63893.0,63892.0,8.8e-07]
[1724459142272,0.078201,63887.0,63886.0,0.00015634]
[1724459142480,0.46435009,63887.0,63886.0,0.00015634]
[1724459142784,0.51647225,63887.0,63886.0,0.00015634]
[1724459142980,0.51651225,63887.0,63886.0,0.00015634]
[1724459143172,0.439041,63887.0,63886.0,0.00015634]
[1724459144083,0.50200875,63887.0,63886.0,0.00015634]
[1724459144382,0.440041,63887.0,63886.0,0.00015634]
[1724459144684,0.36184,63887.0,63886.0,0.00015634]
[1724459144884,0.36184,63887.0,63886.0,0.07835834]
[1724459145184,0.36284,63887.0,63886.0,0.07835834]
[1724459145380,0.36284,63887.0,63886.0,0.00015634]
[1724459145587,0.42480775,63887.0,63886.0,0.00015634]
[1724459145789,0.36284,63887.0,63886.0,0.00015634]
[1724459145977,0.988842,63887.0,63886.0,0.00015634]
[1724459146181,1.06631325,63887.0,63886.0,0.00015634]
[1724459147284,0.988842,63887.0,63886.0,0.00015634]
[1724459148387,0.441041,63887.0,63886.0,0.00015634]
[1724459150990,0.50298192,63887.0,63886.0,0.00015634]
[1724459151584,0.50198192,63887.0,63886.0,0.00015634]
[1724459151786,0.50098192,63887.0,63886.0,0.00015634]
[1724459152291,0.439041,63887.0,63886.0,0.00015634]
[1724459153998,0.50099758,63887.0,63886.0,0.00015634]
[1724459154190,0.439041,63887.0,63886.0,0.00015634]
[1724459154688,0.48551865,63887.0,63886.0,0.00015634]
[1724459155296,0.439041,63887.0,63886.0,0.00015634]
[1724459155694,0.50099758,63887.0,63886.0,0.00015634]
[1724459156398,0.439041,63887.0,63886.0,0.00015634]
[1724459158999,0.46439309,63887.0,63886.0,0.00015634]
[1724459160095,0.439041,63887.0,63886.0,0.00015634]
[1724459165493,0.5166587,63887.0,63886.0,0.00015634]
[1724459166406,0.439041,63887.0,63886.0,0.00015634]
[1724459166711,0.51667467,63887.0,63886.0,0.00015634]
[1724459167005,0.439041,63887.0,63886.0,0.00015634]
[1724459167406,0.51667389,63887.0,63886.0,0.00015634]
[1724459169510,0.439041,63887.0,63886.0,0.00015634]
[1724459169902,0.51672528,63887.0,63886.0,0.04707317]
[1724459170107,0.51672528,63887.0,63886.0,0.00015634]
[1724459170609,0.439041,63887.0,63886.0,0.00015634]
[1724459171105,0.4643914,63887.0,63886.0,0.00015634]
[1724459173010,0.439041,63887.0,63886.0,0.00015634]
[1724459173208,0.46439123,63887.0,63886.0,0.00015634]
[1724459173413,0.439041,63887.0,63886.0,0.00015634]
[1724459173608,0.46439108,63887.0,63886.0,0.00015634]
[1724459173810,0.46439176,63887.0,63886.0,0.00015634]
[1724459180110,0.10359176,63887.0,63886.0,0.00015634]
[1724459180307,0.82519176,63887.0,63886.0,0.00015634]
[1724459181316,0.10359176,63887.0,63886.0,0.00015634]
[1724459181515,0.82519176,63887.0,63886.0,0.00015634]
[1724459183316,0.82519202,63887.0,63886.0,0.00015634]
[1724459187729,0.36084,63887.0,63886.0,0.51667317]
[1724459188030,0.06220156,63890.0,63887.0,0.46956]
[1724459188227,0.03359812,63890.0,63889.0,0.6308]
[1724459188425,0.00041678,63893.0,63889.0,0.708998]
[1724459188622,0.00041678,63893.0,63892.0,0.078194]
[1724459188822,7.8e-07,63893.0,63892.0,0.517188]
[1724459189023,7.8e-07,63893.0,63892.0,1.38869454]
[1724459189329,0.06214707,63908.0,63907.0,0.078176]
[1724459189528,0.06214707,63910.0,63909.0,0.078174]
[1724459189826,0.0483,63926.0,63915.0,0.078166]
[1724459189827,0.06214707,63917.0,63915.0,0.078166]
[1724459190026,0.06214707,63919.0,63916.0,0.078164]
[1724459190222,0.078158,63922.0,63916.0,0.078164]
[1724459190626,0.06214707,63925.0,63913.0,0.6308]
[1724459190627,0.42318185,63925.0,63913.0,0.63103478]
[1724459190823,0.00023478,63925.0,63921.0,0.3608]
[1724459191020,0.00023478,63925.0,63919.0,0.078161]
[1724459191426,0.00023478,63925.0,63919.0,0.438961]
[1724459192225,0.00023478,63925.0,63914.0,0.0474]
[1724459192226,0.3608,63922.0,63914.0,0.0474]
[1724459192431,0.011,63919.0,63914.0,0.0474]
[1724459192828,0.078158,63922.0,63914.0,0.0474]
[1724459193027,4e-05,63915.0,63914.0,0.0474]
[1724459193526,4e-05,63915.0,63914.0,0.51676]
[1724459193733,4e-05,63915.0,63914.0,0.994927]
[1724459194230,0.00804,63915.0,63914.0,0.994927]
[1724459194626,0.00804,63915.0,63914.0,1.00282675]
[1724459194827,0.00804,63915.0,63914.0,0.994927]
[1724459195025,0.007,63919.0,63918.0,0.078163]
[1724459195226,0.007,63919.0,63918.0,0.748163]
[1724459195427,0.007,63919.0,63918.0,1.217523]
[1724459196028,0.00023478,63925.0,63923.0,0.078156]
[1724459196224,0.00023478,63925.0,63924.0,0.048]
[1724459196928,0.00023478,63925.0,63924.0,0.04804]
[1724459197428,0.01423478,63925.0,63924.0,0.04804]
[1724459197736,0.02823478,63925.0,63924.0,0.04804]
[1724459198230,0.02823478,63925.0,63924.0,0.09314]
[1724459199235,0.02823478,63925.0,63924.0,0.171295]
[1724459201427,0.02823478,63925.0,63924.0,1.040615]
[1724459201622,0.02823478,63925.0,63924.0,1.310615]
[1724459201827,0.02823478,63925.0,63924.0,1.529615]
[1724459203321,0.02823478,63925.0,63924.0,0.390295]
[1724459203530,0.02223478,63925.0,63924.0,0.391295]
[1724459203929,0.01523478,63925.0,63924.0,0.391295]
[1724459210531,0.01523478,63925.0,63924.0,0.298195]
[1724459211333,0.01523478,63925.0,63924.0,0.568195]
[1724459212840,0.00923478,63925.0,63924.0,0.568195]
[1724459213142,0.00223478,63925.0,63924.0,0.574195]
[1724459214139,0.00223478,63925.0,63924.0,0.934995]
[1724459215443,0.00223478,63925.0,63924.0,0.935995]
[1724459216139,0.00123478,63925.0,63924.0,0.934995]
[1724459216337,0.00123478,63925.0,63924.0,0.936995]
[1724459216338,0.00223478,63925.0,63924.0,0.936995]
[1724459217438,0.00223478,63925.0,63924.0,0.98371281]
[1724459217832,0.00223478,63925.0,63924.0,1.88447]
[1724459218839,0.00223478,63925.0,63924.0,1.88347]
[1724459220848,0.00223478,63925.0,63924.0,2.04019275]
[1724459221040,0.00223478,63925.0,63924.0,1.96218028]
[1724459221637,0.06214707,63938.0,63925.0,0.078154]
[1724459221840,0.06214707,63938.0,63936.0,0.31681233]
[1724459222135,0.0473,63942.0,63936.0,0.31681233]
[1724459222136,0.06214707,63939.0,63938.0,0.078138]
[1724459222440,0.07813,63945.0,63936.0,0.31681233]
[1724459222441,0.43935058,63949.0,63936.0,0.27]
[1724459222747,0.0621715,63947.0,63946.0,0.078129]
[1724459222946,0.36103459,63949.0,63946.0,0.078129]
[1724459223137,0.43915959,63949.0,63946.0,0.078129]
[1724459223344,0.07813,63945.0,63942.0,0.12493694]
[1724459223543,0.174531,63944.0,63942.0,0.12493694]
[1724459223845,0.174531,63944.0,63942.0,0.078133]
[1724459224044,4e-05,63943.0,63942.0,0.078133]
[1724459224454,0.06218436,63943.0,63942.0,0.078133]
[1724459224644,0.06218436,63943.0,63942.0,0.12493694]
[1724459225144,0.06218436,63943.0,63942.0,0.078133]
[1724459225351,4e-05,63943.0,63942.0,0.078133]
[1724459226148,0.02004,63943.0,63942.0,0.080133]
[1724459232047,0.02004,63943.0,63942.0,0.12693694]
[1724459232346,0.02004,63943.0,63942.0,0.99603931]
[1724459232652,0.02004,63943.0,63942.0,1.05949825]
[1724459232850,0.02004,63943.0,63942.0,0.997093]
[1724459233251,0.02004,63943.0,63942.0,1.05938859]
[1724459233546,0.02004,63943.0,63942.0,1.05938844]
[1724459234150,0.02004,63943.0,63942.0,0.997093]
[1724459235152,0.00023459,63949.0,63942.0,0.997093]
[1724459235354,0.10880738,63976.0,63942.0,0.997093]
[1724459235355,0.06214436,63970.0,63961.0,0.07811]
[1724459235566,0.06214436,63971.0,63964.0,0.3608]
[1724459235763,0.3608,63967.0,63961.0,0.07811]
[1724459236060,0.3608,63967.0,63954.0,0.54418]
[1724459236061,0.06214436,63965.0,63954.0,0.57968]
[1724459236259,0.078114,63958.0,63954.0,0.3608]
[1724459236462,0.0453,63957.0,63954.0,0.3608]
[1724459238264,0.0453,63957.0,63954.0,0.002]
[1724459238968,0.0453,63957.0,63954.0,0.001]
[1724459239155,0.0463,63957.0,63954.0,0.002]
[1724459240260,0.124415,63957.0,63954.0,0.002]
[1724459240663,0.3608,63955.0,63954.0,0.002]
[1724459240865,0.0463,63957.0,63954.0,0.002]
[1724459241063,0.0463,63957.0,63956.0,0.078116]
[1724459241872,0.0463,63957.0,63956.0,0.078156]
[1724459242069,0.0453,63957.0,63956.0,0.078156]
[1724459242261,0.0543,63957.0,63956.0,0.079156]
[1724459242660,0.0543,63957.0,63956.0,0.080156]
[1724459245568,0.0543,63957.0,63956.0,0.440956]
[1724459247067,0.132415,63957.0,63956.0,0.36284]
[1724459247272,0.132415,63957.0,63956.0,0.00204]
[1724459247471,0.601495,63957.0,63956.0,0.00204]
[1724459247778,0.67961,63957.0,63956.0,0.00204]
[1724459248478,0.75736058,63957.0,63956.0,0.00204]
[1724459248773,1.15736058,63957.0,63956.0,0.00204]
[1724459249474,0.75736058,63957.0,63956.0,0.00204]
[1724459251866,0.67961,63957.0,63956.0,0.00204]
[1724459252070,0.75736058,63957.0,63956.0,0.00204]
[1724459254176,1.11816058,63957.0,63956.0,0.00204]
[1724459255475,0.64908058,63957.0,63956.0,0.00204]
[1724459256085,0.21053,63957.0,63956.0,0.00204]
[1724459256279,0.2358542,63957.0,63956.0,0.00204]
[1724459256584,0.5966542,63957.0,63956.0,0.00204]
[1724459257976,0.2358542,63957.0,63956.0,0.00204]
[1724459258178,0.5966542,63957.0,63956.0,0.00204]
[1724459258372,1.0657342,63957.0,63956.0,0.00204]
[1724459258580,1.4657342,63957.0,63956.0,0.00204]
[1724459258879,0.156238,63954.0,63953.0,0.00023459]
[1724459259085,0.078129,63946.0,63943.0,0.04669478]
[1724459259284,0.078132,63943.0,63942.0,0.40749478]
[1724459259682,0.078132,63943.0,63942.0,0.3608]
[1724459260186,0.078172,63943.0,63942.0,0.3608]
[1724459261087,0.079172,63943.0,63942.0,0.3608]
[1724459261886,0.080172,63943.0,63942.0,0.3608]
[1724459264082,0.080172,63943.0,63941.0,0.078134]
[1724459265081,4e-05,63942.0,63941.0,0.078134]
[1724459268171,4e-05,63942.0,63941.0,0.12482878]
[1724459269382,0.078173,63942.0,63941.0,0.12482878]
[1724459269589,0.078173,63942.0,63941.0,0.078134]
[1724459271582,4e-05,63942.0,63941.0,0.078134]
[1724459276190,4e-05,63942.0,63939.0,0.06225971]
[1724459276388,0.078136,63940.0,63939.0,0.06225971]
[1724459276693,0.078146,63932.0,63931.0,0.07782463]
[1724459276987,0.078155,63924.0,63916.0,0.3253]
[1724459277186,0.438955,63924.0,63915.0,0.1435]
[1724459277890,0.438995,63924.0,63917.0,0.00023459]
[1724459279287,0.439995,63924.0,63923.0,0.10767332]
[1724459279691,1.50116,63924.0,63917.0,0.00023459]
[1724459279891,0.438963,63918.0,63917.0,0.00023459]
[1724459280495,0.439003,63918.0,63917.0,0.00023459]
[1724459280996,0.439003,63918.0,63917.0,0.02823459]
[1724459282593,0.440003,63918.0,63917.0,0.01723459]
[1724459283190,0.441003,63918.0,63917.0,0.01623459]
[1724459283799,0.451003,63918.0,63917.0,0.00323459]
[1724459284091,0.460003,63918.0,63917.0,0.00023459]
[1724459284294,0.460003,63918.0,63914.0,0.00012]
[1724459284295,0.078166,63915.0,63914.0,0.00012]
[1724459284591,0.078175,63908.0,63906.0,0.00017694]
[1724459284798,0.3608,63907.0,63906.0,0.00017694]
[1724459285494,0.83024,63907.0,63906.0,0.00017694]
[1724459285691,0.00015497,63906.0,63902.0,0.04669964]
[1724459286792,0.00015497,63906.0,63900.0,0.00015672]
[1724459286992,0.3608,63901.0,63900.0,0.00015672]
[1724459289394,0.439983,63901.0,63900.0,0.00815672]
[1724459289583,0.440983,63901.0,63900.0,0.00915672]
[1724459292802,0.441023,63901.0,63900.0,0.00915672]
[1724459296694,0.080223,63901.0,63900.0,0.00915672]
[1724459296892,0.00204,63901.0,63900.0,0.00915672]
[1724459297701,0.00204,63901.0,63900.0,0.08734172]
[1724459299406,0.00204,63901.0,63900.0,0.00915672]
[1724459300107,0.080223,63901.0,63900.0,0.00915672]
[1724459304809,0.441023,63901.0,63900.0,0.00915672]
[1724459305110,0.486323,63901.0,63900.0,0.00915672]
[1724459305410,0.486323,63901.0,63900.0,0.00115672]
[1724459305706,0.486323,63901.0,63900.0,0.00815672]
[1724459306111,0.486323,63901.0,63900.0,0.00915672]
[1724459306503,0.125523,63901.0,63900.0,0.00915672]
[1724459306703,0.080223,63901.0,63900.0,0.00915672]
[1724459308313,0.078193,63893.0,63885.0,0.04669964]
[1724459308507,0.3608,63886.0,63880.0,0.40749964]
[1724459308702,0.04651615,63882.0,63880.0,0.3608]
[1724459308906,0.12472415,63881.0,63880.0,0.3608]
[1724459309108,0.078208,63881.0,63880.0,0.3608]
[1724459309317,0.12474342,63881.0,63880.0,0.3608]
[1724459309522,0.076208,63881.0,63880.0,0.3608]
[1724459309714,0.076248,63881.0,63880.0,0.3608]
[1724459309918,0.076248,63881.0,63880.0,0.3728]
[1724459310217,0.077248,63881.0,63880.0,0.3748]
[1724459310414,0.078248,63881.0,63880.0,0.3688]
[1724459310920,0.00204,63881.0,63880.0,0.3688]
[1724459311218,0.00204,63881.0,63880.0,1.15513964]
[1724459311521,0.00204,63881.0,63880.0,1.10844]
[1724459311821,0.00204,63881.0,63880.0,0.916649]
[1724459313125,0.00023478,63887.0,63880.0,0.8384]
[1724459313420,0.04652506,63893.0,63892.0,0.078194]
[1724459313624,0.04654378,63893.0,63892.0,0.438994]
[1724459313815,0.04654378,63894.0,63893.0,0.078193]
[1724459314618,0.078186,63899.0,63893.0,0.078193]
[1724459314619,0.06202469,63897.0,63893.0,0.078193]
[1724459315213,0.06202469,63896.0,63893.0,0.078193]
[1724459315824,0.06202469,63896.0,63892.0,0.4076107]
[1724459315825,0.06202469,63894.0,63892.0,0.3608]
[1724459316026,0.50934646,63893.0,63867.0,0.04684251]
[1724459316326,0.43835974,63868.0,63861.0,0.3608]
[1724459316526,0.04646963,63866.0,63862.0,0.0476]
[1724459316729,0.3608,63868.0,63862.0,0.0476]
[1724459316730,0.04646963,63867.0,63862.0,0.0476]
[1724459317031,0.06195942,63871.0,63863.0,0.3608]
[1724459317032,0.00015455,63866.0,63863.0,0.3608]
[1724459317335,0.04646963,63876.0,63864.0,0.27]
[1724459317527,0.04646963,63879.0,63875.0,0.439014]
[1724459317724,0.04646963,63879.0,63876.0,0.0953]
[1724459318335,0.04646963,63880.0,63876.0,0.0953]
[1724459319536,0.04646963,63881.0,63876.0,0.0953]
[1724459319834,0.04646963,63881.0,63876.0,0.1003]
[1724459319835,0.001,63880.0,63876.0,0.1003]
[1724459320230,0.001,63879.0,63876.0,0.1003]